[Event "Late-Titled-Tuesday-Blitz-October-10-2023"]
[Site "Chess.com"]
[Date "2023.10.10"]
[Round "9"]
[White "Schwindle"]
[Black "CraiggoryC"]
[Result "0-1"]
[WhiteElo "2397"]
[BlackElo "2281"]
[TimeControl "180+1"]
[EndTime "15:39:21 PDT"]
[Termination "CraiggoryC won by resignation"]

1. e4 {[%clk 0:03:00.9]} 1... e6 {[%clk 0:02:58.1]} 2. d4 {[%clk 0:03:00.8]}
2... d5 {[%clk 0:02:58.6]} 3. Nc3 {[%clk 0:03:01.4]} 3... Bb4 {[%clk 0:02:55.8]}
4. e5 {[%clk 0:03:01.4]} 4... c5 {[%clk 0:02:56]} 5. Bd2 {[%clk 0:03:01.6]} 5...
Nh6 {[%clk 0:02:55.2]} 6. Nf3 {[%clk 0:03:01.4]} 6... Nf5 {[%clk 0:02:53.3]} 7.
dxc5 {[%clk 0:02:59.8]} 7... Nd7 {[%clk 0:02:39.3]} 8. Bd3 {[%clk 0:02:58.4]}
8... Nxc5 {[%clk 0:02:38.7]} 9. Bxf5 {[%clk 0:02:56.6]} 9... exf5 {[%clk
0:02:39.6]} 10. O-O {[%clk 0:02:56.5]} 10... Be6 {[%clk 0:02:36.7]} 11. Nb5
{[%clk 0:02:29.1]} 11... Bxd2 {[%clk 0:02:26.7]} 12. Nd6+ {[%clk 0:02:26.4]}
12... Kf8 {[%clk 0:02:22]} 13. Nxd2 {[%clk 0:02:22.9]} 13... Qb6 {[%clk
0:02:05.4]} 14. Kh1 {[%clk 0:02:00.6]} 14... h5 {[%clk 0:01:48.5]} 15. Rb1
{[%clk 0:01:44.9]} 15... h4 {[%clk 0:01:48]} 16. h3 {[%clk 0:01:43.6]} 16... Ne4
{[%clk 0:01:28.8]} 17. N2xe4 {[%clk 0:01:42]} 17... dxe4 {[%clk 0:01:29.7]} 18.
c4 {[%clk 0:01:31.2]} 18... Rd8 {[%clk 0:01:13.1]} 19. b4 {[%clk 0:01:25.1]}
19... Bxc4 {[%clk 0:01:05.3]} 20. Nxc4 {[%clk 0:00:42.5]} 20... Rxd1 {[%clk
0:01:04.8]} 21. Nxb6 {[%clk 0:00:35.4]} 21... Rxf1+ {[%clk 0:01:03.4]} 22. Rxf1
{[%clk 0:00:35.7]} 22... axb6 {[%clk 0:01:04]} 23. Rc1 {[%clk 0:00:33.8]} 23...
Ke7 {[%clk 0:00:43.9]} 24. Rc7+ {[%clk 0:00:31.2]} 24... Ke6 {[%clk 0:00:44.1]}
25. Rxb7 {[%clk 0:00:31.6]} 25... Ra8 {[%clk 0:00:42.4]} 26. Rxb6+ {[%clk
0:00:31.9]} 26... Kxe5 {[%clk 0:00:42.6]} 27. Rb5+ {[%clk 0:00:31.3]} 27... Kf4
{[%clk 0:00:32.8]} 28. Ra5 {[%clk 0:00:28.1]} 28... Rc8 {[%clk 0:00:16.1]} 29.
Kg1 {[%clk 0:00:22.1]} 29... Rc1+ {[%clk 0:00:13]} 30. Kh2 {[%clk 0:00:22.5]}
30... Rc2 {[%clk 0:00:12.8]} 31. Kg1 {[%clk 0:00:19.7]} 31... Rc1+ {[%clk
0:00:05.5]} 32. Kh2 {[%clk 0:00:19.9]} 32... Rf1 {[%clk 0:00:05.6]} 33. g3+
{[%clk 0:00:19.4]} 33... hxg3+ {[%clk 0:00:02.4]} 34. fxg3+ {[%clk 0:00:20.3]}
34... Kf3 {[%clk 0:00:02.7]} 35. Rxf5+ {[%clk 0:00:20.1]} 35... Ke2 {[%clk
0:00:03.2]} 36. Rxf1 {[%clk 0:00:15.5]} 36... Kxf1 {[%clk 0:00:04.1]} 37. b5
{[%clk 0:00:16]} 37... e3 {[%clk 0:00:04.7]} 38. b6 {[%clk 0:00:16.8]} 38... e2
{[%clk 0:00:05.3]} 39. b7 {[%clk 0:00:17.6]} 39... e1=Q {[%clk 0:00:05.9]} 40.
b8=Q {[%clk 0:00:17]} 40... Qf2+ {[%clk 0:00:05.1]} 0-1

[Event "Late-Titled-Tuesday-Blitz-October-10-2023"]
[Site "Chess.com"]
[Date "2023.10.10"]
[Round "9"]
[White "lluiss"]
[Black "schondeln"]
[Result "0-1"]
[WhiteElo "2221"]
[BlackElo "2390"]
[TimeControl "180+1"]
[EndTime "15:39:24 PDT"]
[Termination "schondeln won on time"]

1. Nf3 {[%clk 0:03:00.9]} 1... d5 {[%clk 0:02:59.7]} 2. d4 {[%clk 0:03:00.4]}
2... Nf6 {[%clk 0:02:59.4]} 3. c4 {[%clk 0:03:00.4]} 3... c6 {[%clk 0:02:59.4]}
4. cxd5 {[%clk 0:03:00.4]} 4... cxd5 {[%clk 0:02:59.5]} 5. Nc3 {[%clk
0:03:00.9]} 5... Nc6 {[%clk 0:02:59.4]} 6. Bf4 {[%clk 0:03:00.2]} 6... e6 {[%clk
0:02:57]} 7. e3 {[%clk 0:02:58.5]} 7... Nh5 {[%clk 0:02:56.6]} 8. Bg5 {[%clk
0:02:45.6]} 8... Qb6 {[%clk 0:02:19.4]} 9. a3 {[%clk 0:02:37.3]} 9... h6 {[%clk
0:02:18.6]} 10. Bh4 {[%clk 0:02:35.8]} 10... g5 {[%clk 0:02:18.9]} 11. Bg3
{[%clk 0:02:33.7]} 11... Nxg3 {[%clk 0:02:18.3]} 12. hxg3 {[%clk 0:02:33.4]}
12... Bg7 {[%clk 0:02:18.5]} 13. b4 {[%clk 0:02:11.3]} 13... Qd8 {[%clk
0:02:13.7]} 14. Be2 {[%clk 0:02:01]} 14... b6 {[%clk 0:01:59.2]} 15. Rc1 {[%clk
0:01:52.6]} 15... Bb7 {[%clk 0:01:57.5]} 16. Bb5 {[%clk 0:01:52.6]} 16... O-O
{[%clk 0:01:46.9]} 17. O-O {[%clk 0:01:49.8]} 17... a6 {[%clk 0:01:44.7]} 18.
Be2 {[%clk 0:01:28.9]} 18... Qe7 {[%clk 0:01:43.9]} 19. Na4 {[%clk 0:01:27.2]}
19... Qd8 {[%clk 0:01:28.5]} 20. Qd2 {[%clk 0:01:24]} 20... a5 {[%clk 0:01:15]}
21. b5 {[%clk 0:01:23.3]} 21... Ne7 {[%clk 0:01:14.5]} 22. Bd3 {[%clk
0:01:15.1]} 22... Qd6 {[%clk 0:01:13.7]} 23. Rc3 {[%clk 0:01:12.1]} 23... Rfc8
{[%clk 0:01:12.9]} 24. Rfc1 {[%clk 0:01:12.1]} 24... Rxc3 {[%clk 0:01:11.6]} 25.
Rxc3 {[%clk 0:01:12.2]} 25... Rc8 {[%clk 0:01:12]} 26. Rxc8+ {[%clk 0:01:11.7]}
26... Bxc8 {[%clk 0:01:12]} 27. Qc3 {[%clk 0:01:10.8]} 27... Bd7 {[%clk
0:01:11.6]} 28. Ne5 {[%clk 0:01:01.4]} 28... Be8 {[%clk 0:01:03.1]} 29. Bc2
{[%clk 0:00:56.2]} 29... f6 {[%clk 0:01:02.7]} 30. Nd3 {[%clk 0:00:55.3]} 30...
Bxb5 {[%clk 0:00:59.1]} 31. Ndb2 {[%clk 0:00:48.2]} 31... Bf8 {[%clk 0:00:51.4]}
32. Bd3 {[%clk 0:00:28.7]} 32... Be8 {[%clk 0:00:51.1]} 33. Qb3 {[%clk
0:00:23.8]} 33... Nc8 {[%clk 0:00:46.1]} 34. Ba6 {[%clk 0:00:23.7]} 34... Qc7
{[%clk 0:00:41.9]} 35. Bxc8 {[%clk 0:00:23.2]} 35... Qxc8 {[%clk 0:00:42]} 36.
Nxb6 {[%clk 0:00:20.5]} 36... Qc1+ {[%clk 0:00:23.2]} 37. Kh2 {[%clk 0:00:20.3]}
37... Qd2 {[%clk 0:00:23.4]} 38. Nd3 {[%clk 0:00:16.1]} 38... Bg6 {[%clk
0:00:18.7]} 39. Nc5 {[%clk 0:00:08.4]} 39... Qxf2 {[%clk 0:00:18]} 0-1

[Event "Late-Titled-Tuesday-Blitz-October-10-2023"]
[Site "Chess.com"]
[Date "2023.10.10"]
[Round "9"]
[White "miraitrunks"]
[Black "ExchangeAB"]
[Result "0-1"]
[WhiteElo "2253"]
[BlackElo "2497"]
[TimeControl "180+1"]
[EndTime "15:39:26 PDT"]
[Termination "ExchangeAB won on time"]

1. e4 {[%clk 0:02:53.9]} 1... c6 {[%clk 0:03:00.1]} 2. d4 {[%clk 0:02:52.9]}
2... d5 {[%clk 0:03:01]} 3. exd5 {[%clk 0:02:53.5]} 3... cxd5 {[%clk 0:03:01.9]}
4. c4 {[%clk 0:02:53.4]} 4... Nf6 {[%clk 0:03:02.8]} 5. Nc3 {[%clk 0:02:53.4]}
5... e6 {[%clk 0:03:03.2]} 6. Bg5 {[%clk 0:02:52.7]} 6... Be7 {[%clk 0:02:47.8]}
7. Nf3 {[%clk 0:02:50.7]} 7... O-O {[%clk 0:02:47.7]} 8. Bd3 {[%clk 0:02:50.2]}
8... dxc4 {[%clk 0:02:48]} 9. Bxc4 {[%clk 0:02:51.1]} 9... Nc6 {[%clk
0:02:46.2]} 10. O-O {[%clk 0:02:50.8]} 10... Nb4 {[%clk 0:02:46.1]} 11. Ne5
{[%clk 0:02:47.4]} 11... Nbd5 {[%clk 0:02:45]} 12. Nxd5 {[%clk 0:02:43]} 12...
Nxd5 {[%clk 0:02:44.5]} 13. Bxe7 {[%clk 0:02:40.7]} 13... Nxe7 {[%clk
0:02:43.6]} 14. Qg4 {[%clk 0:02:35.4]} 14... Nd5 {[%clk 0:02:37.6]} 15. Rad1
{[%clk 0:02:28.6]} 15... b6 {[%clk 0:02:34.2]} 16. Rd3 {[%clk 0:02:06.2]} 16...
Bb7 {[%clk 0:02:34.1]} 17. Rg3 {[%clk 0:02:03.9]} 17... g6 {[%clk 0:02:34.5]}
18. h4 {[%clk 0:02:02.2]} 18... Nf6 {[%clk 0:02:01.5]} 19. Qh3 {[%clk
0:01:54.8]} 19... Qxd4 {[%clk 0:01:51.9]} 20. Re1 {[%clk 0:01:27.9]} 20... Ne4
{[%clk 0:01:49]} 21. Rxe4 {[%clk 0:01:18.2]} 21... Qxe4 {[%clk 0:01:44.3]} 22.
Re3 {[%clk 0:01:18]} 22... Qb1+ {[%clk 0:01:31.2]} 23. Kh2 {[%clk 0:01:15.4]}
23... Qxb2 {[%clk 0:01:30.5]} 24. h5 {[%clk 0:01:14.1]} 24... Bd5 {[%clk
0:01:15.5]} 25. hxg6 {[%clk 0:01:06.6]} 25... hxg6 {[%clk 0:01:09.3]} 26. Bd3
{[%clk 0:00:31]} 26... Kg7 {[%clk 0:00:58.5]} 27. Bxg6 {[%clk 0:00:15]} 27...
fxg6 {[%clk 0:00:49.4]} 28. Qg4 {[%clk 0:00:14.8]} 28... Rh8+ {[%clk 0:00:44]}
29. Kg3 {[%clk 0:00:13.6]} 29... Rh6 {[%clk 0:00:33]} 30. Qg5 {[%clk 0:00:14.3]}
30... Re8 {[%clk 0:00:26.8]} 31. Ng4 {[%clk 0:00:09.6]} 31... Rh5 {[%clk
0:00:22.4]} 32. Qf4 {[%clk 0:00:06.3]} 32... Rf5 {[%clk 0:00:18.6]} 33. Qh6+
{[%clk 0:00:06.3]} 33... Kf7 {[%clk 0:00:19.1]} 34. Qh7+ {[%clk 0:00:06.5]}
34... Qg7 {[%clk 0:00:18.6]} 0-1

[Event "Late-Titled-Tuesday-Blitz-October-10-2023"]
[Site "Chess.com"]
[Date "2023.10.10"]
[Round "9"]
[White "Zeck_CH"]
[Black "JoakimVonAnd"]
[Result "0-1"]
[WhiteElo "2498"]
[BlackElo "2684"]
[TimeControl "180+1"]
[EndTime "15:39:39 PDT"]
[Termination "JoakimVonAnd won by resignation"]

1. d4 {[%clk 0:03:00.9]} 1... Nf6 {[%clk 0:02:59.7]} 2. c4 {[%clk 0:02:59.4]}
2... e6 {[%clk 0:02:59.6]} 3. Nf3 {[%clk 0:02:59.2]} 3... b6 {[%clk 0:02:57.5]}
4. g3 {[%clk 0:02:58.8]} 4... Bb7 {[%clk 0:02:58]} 5. Bg2 {[%clk 0:02:58.6]}
5... Bb4+ {[%clk 0:02:57.1]} 6. Nbd2 {[%clk 0:02:58.1]} 6... O-O {[%clk
0:02:56]} 7. Qb3 {[%clk 0:02:58.1]} 7... a5 {[%clk 0:02:54.6]} 8. a3 {[%clk
0:02:58]} 8... Be7 {[%clk 0:02:53.9]} 9. O-O {[%clk 0:02:58]} 9... d5 {[%clk
0:02:48.7]} 10. Rd1 {[%clk 0:02:55.1]} 10... a4 {[%clk 0:02:41.2]} 11. Qc2
{[%clk 0:02:54.7]} 11... Nc6 {[%clk 0:02:38.4]} 12. cxd5 {[%clk 0:02:47.8]}
12... exd5 {[%clk 0:02:35.4]} 13. Ne5 {[%clk 0:02:43.6]} 13... Nxd4 {[%clk
0:02:33.3]} 14. Qd3 {[%clk 0:02:41.3]} 14... c5 {[%clk 0:02:28.5]} 15. e3 {[%clk
0:02:31.8]} 15... Ba6 {[%clk 0:02:25.4]} 16. Qb1 {[%clk 0:02:31.5]} 16... Ne2+
{[%clk 0:02:09.6]} 17. Kh1 {[%clk 0:02:31.1]} 17... Bd6 {[%clk 0:02:09.3]} 18.
Nef3 {[%clk 0:01:54.2]} 18... Ng4 {[%clk 0:01:56.5]} 19. Rf1 {[%clk 0:01:54.3]}
19... d4 {[%clk 0:01:48.9]} 20. exd4 {[%clk 0:01:50.6]} 20... cxd4 {[%clk
0:01:49.8]} 21. Ne4 {[%clk 0:01:48.5]} 21... Re8 {[%clk 0:01:31.7]} 22. Bd2
{[%clk 0:01:34.2]} 22... d3 {[%clk 0:01:18.7]} 23. Nc3 {[%clk 0:01:27.3]} 23...
Bb7 {[%clk 0:01:14.4]} 24. Qxd3 {[%clk 0:01:21.8]} 24... Ba6 {[%clk 0:00:56.6]}
25. Qf5 {[%clk 0:01:16.3]} 25... Bc8 {[%clk 0:00:37.6]} 26. Qd3 {[%clk
0:01:06.3]} 26... Nxc3 {[%clk 0:00:33.8]} 27. Bxc3 {[%clk 0:00:59.1]} 27... Ba6
{[%clk 0:00:33.9]} 28. Qf5 {[%clk 0:00:59.1]} 28... Bxf1 {[%clk 0:00:33.7]} 29.
Rxf1 {[%clk 0:00:55.2]} 29... Nf6 {[%clk 0:00:30.5]} 30. Rd1 {[%clk 0:00:46.2]}
30... Qe7 {[%clk 0:00:20.3]} 31. h4 {[%clk 0:00:24.4]} 31... Qe6 {[%clk
0:00:18.4]} 32. Qg5 {[%clk 0:00:22.2]} 32... h6 {[%clk 0:00:18.3]} 33. Qb5
{[%clk 0:00:17.9]} 33... Bc5 {[%clk 0:00:18]} 34. Nd4 {[%clk 0:00:15.5]} 34...
Bxd4 {[%clk 0:00:18.4]} 35. Rxd4 {[%clk 0:00:14.5]} 35... Rad8 {[%clk
0:00:18.5]} 36. Rf4 {[%clk 0:00:10.8]} 36... Rd1+ {[%clk 0:00:17.3]} 37. Bf1
{[%clk 0:00:09.5]} 37... Qd5+ {[%clk 0:00:15.9]} 38. Qxd5 {[%clk 0:00:09]} 38...
Nxd5 {[%clk 0:00:16.8]} 39. Rd4 {[%clk 0:00:05.8]} 39... Nxc3 {[%clk 0:00:17.2]}
40. bxc3 {[%clk 0:00:05.3]} 40... Rxf1+ {[%clk 0:00:17.4]} 41. Kg2 {[%clk
0:00:05.9]} 41... Ra1 {[%clk 0:00:17.7]} 42. Rb4 {[%clk 0:00:06.3]} 42... Rxa3
{[%clk 0:00:17.3]} 43. Rxb6 {[%clk 0:00:06.3]} 43... Rxc3 {[%clk 0:00:17.4]} 0-1

[Event "Late-Titled-Tuesday-Blitz-October-10-2023"]
[Site "Chess.com"]
[Date "2023.10.10"]
[Round "9"]
[White "Krakozia"]
[Black "Korchmar_Vasiliy"]
[Result "0-1"]
[WhiteElo "2966"]
[BlackElo "2774"]
[TimeControl "180+1"]
[EndTime "15:39:42 PDT"]
[Termination "Korchmar_Vasiliy won on time"]

1. e4 {[%clk 0:03:00.9]} 1... c5 {[%clk 0:03:00]} 2. Nf3 {[%clk 0:03:00.8]} 2...
d6 {[%clk 0:03:00.4]} 3. d4 {[%clk 0:03:00.8]} 3... cxd4 {[%clk 0:03:01.3]} 4.
Nxd4 {[%clk 0:03:00.8]} 4... Nf6 {[%clk 0:03:01.9]} 5. Nc3 {[%clk 0:03:01]} 5...
Nc6 {[%clk 0:03:02.4]} 6. Bg5 {[%clk 0:02:58.8]} 6... Bd7 {[%clk 0:03:02.4]} 7.
Qd2 {[%clk 0:02:58.3]} 7... a6 {[%clk 0:03:02.2]} 8. O-O-O {[%clk 0:02:56.8]}
8... e6 {[%clk 0:03:02.6]} 9. Nxc6 {[%clk 0:02:56.5]} 9... bxc6 {[%clk
0:02:46.9]} 10. Bc4 {[%clk 0:02:47.2]} 10... Be7 {[%clk 0:02:38.7]} 11. e5
{[%clk 0:02:26.5]} 11... dxe5 {[%clk 0:02:32.5]} 12. Rhe1 {[%clk 0:02:16.1]}
12... h6 {[%clk 0:02:14.1]} 13. Bxf6 {[%clk 0:02:08.8]} 13... Bxf6 {[%clk
0:02:06.8]} 14. Kb1 {[%clk 0:02:08.6]} 14... Qc7 {[%clk 0:01:50.9]} 15. Ne4
{[%clk 0:01:50.8]} 15... Be7 {[%clk 0:01:50.8]} 16. Bb3 {[%clk 0:01:40.7]} 16...
Rd8 {[%clk 0:01:20.3]} 17. Qc3 {[%clk 0:01:34]} 17... c5 {[%clk 0:01:04.1]} 18.
Bc4 {[%clk 0:01:06.1]} 18... a5 {[%clk 0:00:50.4]} 19. Ng3 {[%clk 0:01:00.6]}
19... Bf6 {[%clk 0:00:48]} 20. Nh5 {[%clk 0:00:58.2]} 20... Bc6 {[%clk
0:00:41.2]} 21. Qg3 {[%clk 0:00:55.8]} 21... Ke7 {[%clk 0:00:38]} 22. c3 {[%clk
0:00:38.7]} 22... Rxd1+ {[%clk 0:00:38]} 23. Rxd1 {[%clk 0:00:38.7]} 23... Rd8
{[%clk 0:00:37.9]} 24. Re1 {[%clk 0:00:37.2]} 24... a4 {[%clk 0:00:36]} 25. Nxg7
{[%clk 0:00:26.9]} 25... Rg8 {[%clk 0:00:17.2]} 26. Nf5+ {[%clk 0:00:18.9]}
26... Kf8 {[%clk 0:00:16.3]} 27. Qh3 {[%clk 0:00:16.7]} 27... exf5 {[%clk
0:00:15.5]} 28. Qxf5 {[%clk 0:00:15.4]} 28... Qd6 {[%clk 0:00:14.1]} 29. Kc2
{[%clk 0:00:12.2]} 29... Rg5 {[%clk 0:00:11.8]} 30. Qh7 {[%clk 0:00:07.7]} 30...
Rg7 {[%clk 0:00:03.4]} 31. Qf5 {[%clk 0:00:06.6]} 31... Rg5 {[%clk 0:00:03.1]}
32. Qc8+ {[%clk 0:00:06.4]} 32... Kg7 {[%clk 0:00:03.1]} 33. g3 {[%clk
0:00:06.3]} 33... Rg6 {[%clk 0:00:02.4]} 34. h4 {[%clk 0:00:04]} 34... h5 {[%clk
0:00:02.6]} 35. Qf5 {[%clk 0:00:03.6]} 35... Rg4 {[%clk 0:00:02.6]} 36. Qxh5
{[%clk 0:00:02.8]} 36... Rxc4 {[%clk 0:00:02.8]} 37. Rd1 {[%clk 0:00:01.8]}
37... Be4+ {[%clk 0:00:03.1]} 38. Kc1 {[%clk 0:00:02.4]} 38... Qe6 {[%clk
0:00:03.5]} 39. Qe2 {[%clk 0:00:02.4]} 39... a3 {[%clk 0:00:03.7]} 40. b3 {[%clk
0:00:01.3]} 40... Rxc3+ {[%clk 0:00:04]} 41. Kd2 {[%clk 0:00:01.7]} 41... Rc2+
{[%clk 0:00:04.5]} 0-1

[Event "Late-Titled-Tuesday-Blitz-October-10-2023"]
[Site "Chess.com"]
[Date "2023.10.10"]
[Round "9"]
[White "frederiksvane"]
[Black "ChristopherYoo"]
[Result "1/2-1/2"]
[WhiteElo "2919"]
[BlackElo "3023"]
[TimeControl "180+1"]
[EndTime "15:39:51 PDT"]
[Termination "Game drawn by repetition"]

1. c4 {[%clk 0:03:00.9]} 1... Nf6 {[%clk 0:02:23.5]} 2. Nc3 {[%clk 0:02:24.9]}
2... g6 {[%clk 0:02:22.1]} 3. e4 {[%clk 0:02:24.9]} 3... e5 {[%clk 0:02:21.7]}
4. Nf3 {[%clk 0:02:25.2]} 4... Bg7 {[%clk 0:02:22]} 5. Be2 {[%clk 0:02:22.7]}
5... O-O {[%clk 0:02:20.7]} 6. O-O {[%clk 0:02:23.2]} 6... Re8 {[%clk
0:02:18.5]} 7. d3 {[%clk 0:02:21.7]} 7... h6 {[%clk 0:02:10.5]} 8. Re1 {[%clk
0:02:21.2]} 8... c6 {[%clk 0:02:10.2]} 9. Bf1 {[%clk 0:02:20.8]} 9... Na6 {[%clk
0:02:03.3]} 10. h3 {[%clk 0:02:16]} 10... Nc7 {[%clk 0:01:28.1]} 11. d4 {[%clk
0:02:12.2]} 11... exd4 {[%clk 0:01:26.7]} 12. Nxd4 {[%clk 0:02:11.9]} 12... d5
{[%clk 0:01:25.1]} 13. cxd5 {[%clk 0:02:00.9]} 13... cxd5 {[%clk 0:01:24.4]} 14.
e5 {[%clk 0:02:01.5]} 14... Ne4 {[%clk 0:01:24]} 15. f4 {[%clk 0:01:52.9]} 15...
Nxc3 {[%clk 0:01:22.5]} 16. bxc3 {[%clk 0:01:53.8]} 16... Ne6 {[%clk 0:01:21.9]}
17. Be3 {[%clk 0:01:53.2]} 17... Nxd4 {[%clk 0:01:14.4]} 18. cxd4 {[%clk
0:01:48.6]} 18... Bf5 {[%clk 0:01:14.2]} 19. Qb3 {[%clk 0:01:48.1]} 19... Re7
{[%clk 0:01:10.8]} 20. Rec1 {[%clk 0:01:42.7]} 20... Be4 {[%clk 0:01:09.2]} 21.
Rc3 {[%clk 0:01:25.9]} 21... Rc7 {[%clk 0:01:07.8]} 22. Rac1 {[%clk 0:01:26.1]}
22... Rac8 {[%clk 0:01:07.5]} 23. Kf2 {[%clk 0:01:08.8]} 23... Bf8 {[%clk
0:00:40.8]} 24. Rxc7 {[%clk 0:00:43.2]} 24... Rxc7 {[%clk 0:00:40.1]} 25. Rxc7
{[%clk 0:00:43.8]} 25... Qxc7 {[%clk 0:00:40.2]} 26. Be2 {[%clk 0:00:28.1]}
26... h5 {[%clk 0:00:37.1]} 27. Bf3 {[%clk 0:00:27.2]} 27... Bxf3 {[%clk
0:00:35.8]} 28. Kxf3 {[%clk 0:00:28.1]} 28... Qc6 {[%clk 0:00:33.5]} 29. g4
{[%clk 0:00:28.4]} 29... hxg4+ {[%clk 0:00:32.4]} 30. hxg4 {[%clk 0:00:29.3]}
30... a5 {[%clk 0:00:11.6]} 31. f5 {[%clk 0:00:18.7]} 31... gxf5 {[%clk
0:00:08.1]} 32. gxf5 {[%clk 0:00:18.7]} 32... Bh6 {[%clk 0:00:08.2]} 33. Kg4
{[%clk 0:00:02.5]} 33... a4 {[%clk 0:00:07.5]} 34. Qd3 {[%clk 0:00:02.5]} 34...
b5 {[%clk 0:00:05.2]} 35. f6 {[%clk 0:00:01.8]} 35... Qe6+ {[%clk 0:00:05.4]}
36. Kh4 {[%clk 0:00:02.4]} 36... Bf8 {[%clk 0:00:02.7]} 37. Bf2 {[%clk
0:00:01.4]} 37... b4 {[%clk 0:00:02.6]} 38. Qg3+ {[%clk 0:00:01.8]} 38... Kh8
{[%clk 0:00:02.5]} 39. Qg5 {[%clk 0:00:02.2]} 39... b3 {[%clk 0:00:03]} 40. Qh5+
{[%clk 0:00:02.6]} 40... Kg8 {[%clk 0:00:03.1]} 41. Qg5+ {[%clk 0:00:03.2]}
41... Kh8 {[%clk 0:00:03.5]} 42. axb3 {[%clk 0:00:04]} 42... axb3 {[%clk
0:00:03.7]} 43. Qh5+ {[%clk 0:00:04.7]} 43... Kg8 {[%clk 0:00:03.7]} 44. Qg5+
{[%clk 0:00:05.3]} 44... Kh8 {[%clk 0:00:03.8]} 45. Qh5+ {[%clk 0:00:04.4]}
45... Kg8 {[%clk 0:00:04.4]} 46. Qg5+ {[%clk 0:00:03.1]} 46... Kh7 {[%clk
0:00:04.2]} 47. Qh5+ {[%clk 0:00:03.3]} 47... Kg8 {[%clk 0:00:03.9]} 1/2-1/2

[Event "Late-Titled-Tuesday-Blitz-October-10-2023"]
[Site "Chess.com"]
[Date "2023.10.10"]
[Round "9"]
[White "tgpgoat"]
[Black "Freefresh"]
[Result "1-0"]
[WhiteElo "2551"]
[BlackElo "2717"]
[TimeControl "180+1"]
[EndTime "15:39:52 PDT"]
[Termination "tgpgoat won on time"]

1. Nf3 {[%clk 0:03:00.9]} 1... e5 {[%clk 0:02:35.3]} 2. Nxe5 {[%clk 0:02:59.2]}
2... d6 {[%clk 0:02:29.7]} 3. Nf3 {[%clk 0:02:59.3]} 3... g6 {[%clk 0:02:16.6]}
4. d4 {[%clk 0:02:55.2]} 4... Bg7 {[%clk 0:02:13.6]} 5. g3 {[%clk 0:02:55.8]}
5... Nf6 {[%clk 0:02:12.7]} 6. Bg2 {[%clk 0:02:55.8]} 6... O-O {[%clk
0:02:11.4]} 7. O-O {[%clk 0:02:56.4]} 7... Nc6 {[%clk 0:02:07.4]} 8. c4 {[%clk
0:02:56.3]} 8... Ne4 {[%clk 0:02:04.4]} 9. Qc2 {[%clk 0:02:52]} 9... f5 {[%clk
0:02:04.1]} 10. d5 {[%clk 0:02:48]} 10... Nb4 {[%clk 0:01:57.8]} 11. Qb3 {[%clk
0:02:46.4]} 11... a5 {[%clk 0:01:57.4]} 12. a3 {[%clk 0:02:40.2]} 12... Na6
{[%clk 0:01:52.7]} 13. Be3 {[%clk 0:02:32]} 13... Nac5 {[%clk 0:01:51.3]} 14.
Qc2 {[%clk 0:02:31.2]} 14... a4 {[%clk 0:01:49]} 15. Bd4 {[%clk 0:02:27.4]}
15... Nb3 {[%clk 0:01:46.4]} 16. Bxg7 {[%clk 0:02:27]} 16... Kxg7 {[%clk
0:01:47.3]} 17. Ra2 {[%clk 0:02:26.4]} 17... Qf6 {[%clk 0:01:44.3]} 18. Nbd2
{[%clk 0:02:18.3]} 18... Nbc5 {[%clk 0:01:41.5]} 19. Nxe4 {[%clk 0:02:14.2]}
19... fxe4 {[%clk 0:01:42.4]} 20. Nd2 {[%clk 0:02:12.7]} 20... e3 {[%clk
0:01:40]} 21. fxe3 {[%clk 0:02:09.1]} 21... Qe5 {[%clk 0:01:36.6]} 22. Rxf8
{[%clk 0:02:02.6]} 22... Kxf8 {[%clk 0:01:37.5]} 23. e4 {[%clk 0:02:01.3]} 23...
Bg4 {[%clk 0:01:31.4]} 24. Ra1 {[%clk 0:02:00.9]} 24... Bxe2 {[%clk 0:01:28.3]}
25. Re1 {[%clk 0:01:55.7]} 25... Bd3 {[%clk 0:01:19.9]} 26. Qd1 {[%clk
0:01:54.5]} 26... Kg7 {[%clk 0:01:14.6]} 27. b4 {[%clk 0:01:44.7]} 27... axb3
{[%clk 0:01:09.2]} 28. Nxb3 {[%clk 0:01:43.2]} 28... Rxa3 {[%clk 0:01:05.7]} 29.
Nxc5 {[%clk 0:01:31.8]} 29... dxc5 {[%clk 0:01:06.6]} 30. Qg4 {[%clk 0:01:21.8]}
30... h5 {[%clk 0:00:52]} 31. Qf4 {[%clk 0:01:16]} 31... Qxf4 {[%clk 0:00:26.3]}
32. gxf4 {[%clk 0:01:16.9]} 32... Bxc4 {[%clk 0:00:24]} 33. e5 {[%clk
0:01:16.5]} 33... Rd3 {[%clk 0:00:24.7]} 34. d6 {[%clk 0:01:11.8]} 34... cxd6
{[%clk 0:00:23.4]} 35. e6 {[%clk 0:01:10.5]} 35... Bb5 {[%clk 0:00:06.6]} 36.
Bxb7 {[%clk 0:00:59.8]} 36... Be8 {[%clk 0:00:07.1]} 37. Bc8 {[%clk 0:00:57.1]}
37... Kf6 {[%clk 0:00:07]} 38. Bd7 {[%clk 0:00:32.3]} 38... Ke7 {[%clk
0:00:04.7]} 39. Bc8 {[%clk 0:00:31.5]} 39... Bc6 {[%clk 0:00:04.3]} 40. Ra1
{[%clk 0:00:27.3]} 40... c4 {[%clk 0:00:04.5]} 41. Ra7+ {[%clk 0:00:26.6]} 41...
Kd8 {[%clk 0:00:03]} 42. Ba6 {[%clk 0:00:21.1]} 42... c3 {[%clk 0:00:03.6]} 43.
Bxd3 {[%clk 0:00:20.4]} 43... d5 {[%clk 0:00:02.6]} 44. Bxg6 {[%clk 0:00:20.4]}
44... d4 {[%clk 0:00:01.9]} 45. e7+ {[%clk 0:00:20.8]} 45... Kc8 {[%clk
0:00:02.2]} 46. Ra6 {[%clk 0:00:15.5]} 46... Bd7 {[%clk 0:00:02.5]} 47. Rd6
{[%clk 0:00:15.4]} 1-0